fUSD/lending_fUSD_20240425
["ID","MTS","AMOUNT","RATE_DAILY","PERIOD"]
[323550606,1714083042786,-500.0,0.00011232,2]
[323550607,1714083042796,-361.6964861,0.00011232,2]
[323550608,1714083042807,-138.3035139,0.00011232,2]
[323550609,1714083042817,-500.0,0.00011232,2]
[323550610,1714083042826,-532.47,0.00011232,2]
[323550612,1714083042836,-316.0102777,0.00011232,2]
[323550614,1714083042848,-183.9897223,0.00011232,2]
[323550616,1714083042858,-463.7802777,0.00011232,2]
[323550619,1714083042891,-36.2197223,0.00011232,2]
[323550621,1714083042901,-500.0,0.00011232,2]
[323550622,1714083042910,-500.0,0.00011232,2]
[323550623,1714083042918,-500.0,0.00011232,2]
[323550624,1714083042927,-567.24,0.00011232,2]
[323550625,1714083042936,-500.0,0.00011232,2]
[323550628,1714083042945,-500.0,0.00011232,2]
[323550630,1714083042954,-500.0,0.00011232,2]
[323550631,1714083042963,-1111.44,0.00011232,2]
[323550632,1714083042972,-500.0,0.00011232,2]
[323550633,1714083042982,-500.0,0.00011232,2]
[323550634,1714083042990,-500.0,0.00011232,2]
[323550636,1714083042999,-543.37,0.00011232,2]
[323550638,1714083043008,-500.0,0.00011232,2]
[323550640,1714083043018,-500.0,0.00011232,2]
[323550642,1714083043028,-500.0,0.00011232,2]
[323550644,1714083043037,-500.0,0.00011232,2]
[323550646,1714083043047,-500.0,0.00011232,2]
[323550648,1714083043057,-1054.5,0.00011232,2]
[323550650,1714083043067,-500.0,0.00011232,2]
[323550652,1714083043077,-500.0,0.00011232,2]
[323550654,1714083043087,-500.0,0.00011232,2]
[323550656,1714083043096,-500.0,0.00011232,2]
[323550658,1714083043106,-457.93213199,0.00011232,2]
[323550661,1714083043118,-42.06786801,0.00011232,2]
[323550663,1714083043130,-500.0,0.00011232,2]
[323550665,1714083043140,-226.52640575,0.00011232,2]
[323550667,1714083043151,-273.47359425,0.00011232,2]
[323550669,1714083043160,-32.62349313,0.00011232,2]
[323550671,1714083043172,-467.37650687,0.00011232,2]
[323550673,1714083043181,-488.96177313,0.00011232,2]
[323550675,1714083043192,-11.03822687,0.00011232,2]
[323550677,1714083043202,-500.0,0.00011232,2]
[323550679,1714083043211,-500.0,0.00011232,2]
[323550681,1714083043221,-500.0,0.00011232,2]
[323550683,1714083043230,-500.0,0.00011232,2]
[323550685,1714083043240,-500.0,0.00011232,2]
[323550688,1714083043255,-500.0,0.00011232,2]
[323550690,1714083043265,-500.0,0.00011232,2]
[323550691,1714083043275,-500.0,0.00011232,2]
[323550692,1714083043284,-500.0,0.00011232,2]
[323550693,1714083043294,-500.0,0.00011232,2]
[323550694,1714083043303,-503.19,0.00011232,2]
[323550695,1714083043312,-500.0,0.00011232,2]
[323550696,1714083043323,-435.77177313,0.00011232,2]
[323550697,1714083043337,-404.91822687,0.00011232,2]
[323550698,1714083043346,-169.33227651,0.00011232,2]
[323550699,1714083043383,-330.66772349,0.00011232,2]
[323550700,1714083043393,-500.0,0.00011232,2]
[323550701,1714083043402,-294.33227663,0.00011232,2]
[323550702,1714083043414,-205.66772337,0.00011232,2]
[323550703,1714083043424,-500.0,0.00011232,2]
[323550704,1714083043433,-214.33227663,0.00011232,2]
[323550706,1714083044586,-500.0,0.00010958,2]
[323550707,1714083044596,-77.69928284,0.00010958,2]
[323550708,1714083044608,-422.30071716,0.00010958,2]
[323550709,1714083044617,-303.57,0.00010958,2]
[323550710,1714083044626,-627.61012686,0.00010958,2]
[323550711,1714083044637,-285.66772337,0.00011232,2]
[323550712,1714083044646,-500.0,0.00011232,2]
[323550713,1714083044656,-500.0,0.00011232,2]
[323550714,1714083044666,-500.0,0.00011232,2]
[323550715,1714083044675,-500.0,0.00011232,2]
[323550716,1714083044685,-500.0,0.00011232,2]
[323550717,1714083044694,-500.0,0.00011232,2]
[323550718,1714083044704,-500.0,0.00011232,2]
[323550719,1714083044713,-500.0,0.00011232,2]
[323550720,1714083044722,-132.57496411,0.00011232,2]
[323550721,1714083044734,-367.42503589,0.00011232,2]
[323550722,1714083044744,-500.0,0.00011232,2]
[323550723,1714083044754,-500.0,0.00011232,2]
[323550724,1714083044763,-155.14090795,0.00011232,2]
[323550725,1714083044775,-344.85909205,0.00011232,2]
[323550726,1714083044785,-500.0,0.00011232,2]
[323550727,1714083044794,-500.0,0.00011232,2]
[323550728,1714083044804,-500.0,0.00011232,2]
[323550729,1714083044814,-420.4,0.00011232,2]
[323550730,1714083044823,-500.0,0.00011232,2]
[323550731,1714083044833,-500.0,0.00011232,2]
[323550732,1714083044842,-500.0,0.00011232,2]
[323550733,1714083044851,-500.0,0.00011232,2]
[323550734,1714083044861,-500.0,0.00011232,2]
[323550735,1714083044870,-505.40300777,0.00011232,2]
[323550736,1714083044879,-500.0,0.00011232,2]
[323550737,1714083044893,-500.0,0.00011232,2]
[323550738,1714083044902,-500.0,0.00011232,2]
[323550739,1714083044912,-500.0,0.00011232,2]
[323550740,1714083044921,-500.0,0.00011232,2]
[323550741,1714083044931,-500.0,0.00011232,2]
[323550742,1714083044940,-500.0,0.00011232,2]
[323550743,1714083044949,-500.0,0.00011232,2]
[323550744,1714083045149,-500.0,0.00011232,2]
[323550745,1714083045166,-363.0483403,0.00011232,2]
[323550746,1714083045175,-500.0,0.00011232,2]
[323550747,1714083045184,-500.0,0.00011232,2]
[323550748,1714083045193,-500.0,0.00011232,2]
[323550749,1714083045202,-500.0,0.00011232,2]
[323550750,1714083045211,-500.0,0.00011232,2]
[323550751,1714083045221,-500.0,0.00011232,2]
[323550752,1714083045230,-1075.05,0.00011232,2]
[323550753,1714083045240,-500.0,0.00011232,2]
[323550754,1714083045252,-500.0,0.00011232,2]
[323550755,1714083045261,-261.04,0.00011232,2]
[323550756,1714083045270,-1202.31,0.00011232,2]
[323550757,1714083045278,-500.0,0.00011232,2]
[323550758,1714083045287,-500.0,0.00011232,2]
[323550759,1714083045296,-500.0,0.00011232,2]
[323550760,1714083045305,-500.0,0.00011232,2]
[323550761,1714083045314,-500.0,0.00011232,2]
[323550762,1714083045325,-500.0,0.00011232,2]
[323550763,1714083045334,-500.0,0.00011232,2]
[323550764,1714083045344,-500.0,0.00011232,2]
[323550765,1714083045353,-500.0,0.00011232,2]
[323550766,1714083045362,-1018.62,0.00011232,2]
[323550767,1714083045371,-150.0,0.00011232,2]
[323550768,1714083045382,-500.0,0.00011232,2]
[323550769,1714083045391,-500.0,0.00011232,2]
[323550770,1714083045402,-500.0,0.00011232,2]
[323550771,1714083045413,-500.0,0.00011232,2]
[323550772,1714083045422,-500.0,0.00011232,2]
[323550773,1714083045431,-500.0,0.00011232,2]
[323550774,1714083045440,-500.0,0.00011232,2]
[323550775,1714083045449,-500.0,0.00011232,2]
[323550776,1714083045458,-500.0,0.00011232,2]
[323550777,1714083045468,-500.0,0.00011232,2]
[323550778,1714083045477,-500.0,0.00011232,2]
[323550779,1714083045487,-500.0,0.00011232,2]
[323550780,1714083045496,-1024.89,0.00011232,2]
[323550781,1714083045505,-500.0,0.00011232,2]
[323550782,1714083045515,-500.0,0.00011232,2]
[323550783,1714083045525,-654.2,0.00011232,2]
[323550784,1714083045534,-500.0,0.00011232,2]
[323550785,1714083045543,-500.0,0.00011232,2]
[323550786,1714083045553,-500.0,0.00011232,2]
[323550787,1714083045563,-539.96,0.00011232,2]
[323550788,1714083045572,-217.05463203,0.00011232,2]
[323550789,1714083045581,-500.0,0.00011232,2]
[323550790,1714083045590,-1152.6,0.00011232,2]
[323550791,1714083045599,-500.0,0.00011232,2]
[323550792,1714083045609,-500.0,0.00011232,2]
[323550793,1714083045618,-420.22772748,0.00011232,2]
[323550794,1714083045628,-500.0,0.00011232,2]
[323550795,1714083045641,-500.0,0.00011232,2]
[323550796,1714083045651,-500.0,0.00011232,2]
[323550797,1714083045661,-500.0,0.00011232,2]
[323550798,1714083045670,-825.66,0.00011232,2]
[323550799,1714083045681,-500.0,0.00011232,2]
[323550800,1714083045691,-500.0,0.00011232,2]
[323550801,1714083045701,-500.0,0.00011232,2]
[323550802,1714083045711,-500.0,0.00011232,2]
[323550803,1714083045721,-500.0,0.00011232,2]
[323550804,1714083045730,-500.0,0.00011232,2]
[323550805,1714083045739,-500.0,0.00011232,2]
[323550806,1714083045749,-500.0,0.00011232,2]
[323550807,1714083045759,-500.0,0.00011232,2]
[323550808,1714083045769,-500.0,0.00011232,2]
[323550809,1714083045779,-500.0,0.00011232,2]
[323550810,1714083045788,-315.99448906,0.00011232,2]
[323550811,1714083045798,-524.82,0.00011232,2]
[323550812,1714083045808,-500.0,0.00011232,2]
[323550814,1714083045819,-500.0,0.00011232,2]
[323550815,1714083045829,-500.0,0.00011232,2]
[323550816,1714083045838,-500.0,0.00011232,2]
[323550817,1714083045848,-500.0,0.00011232,2]
[323550818,1714083045857,-500.0,0.00011232,2]
[323550819,1714083045867,-500.0,0.00011232,2]
[323550820,1714083045876,-546.8,0.00011232,2]
[323550821,1714083045892,-500.0,0.00011232,2]
[323550822,1714083045901,-500.0,0.00011232,2]
[323550823,1714083045910,-500.0,0.00011232,2]
[323550824,1714083045919,-502.09,0.00011232,2]
[323550826,1714083045928,-500.0,0.00011232,2]
[323550827,1714083045937,-500.0,0.00011232,2]
[323550828,1714083045946,-838.24,0.00011232,2]
[323550829,1714083045955,-500.0,0.00011232,2]
[323550830,1714083045964,-500.0,0.00011232,2]
[323550831,1714083045973,-500.0,0.00011232,2]
[323550833,1714083045982,-500.0,0.00011232,2]
[323550834,1714083045991,-500.0,0.00011232,2]
[323550835,1714083046001,-500.0,0.00011232,2]
[323550836,1714083046010,-150.0,0.00011232,2]
[323550837,1714083046019,-500.0,0.00011232,2]
[323550838,1714083046028,-500.0,0.00011232,2]
[323550839,1714083046037,-500.0,0.00011232,2]
[323550840,1714083046046,-500.0,0.00011232,2]
[323550841,1714083046055,-500.0,0.00011232,2]
[323550842,1714083046065,-500.0,0.00011232,2]
[323550843,1714083046074,-500.0,0.00011232,2]
[323550844,1714083046084,-500.0,0.00011232,2]
[323550845,1714083046093,-500.0,0.00011232,2]
[323550846,1714083046102,-500.0,0.00011232,2]
[323550847,1714083046111,-500.0,0.00011232,2]
[323550848,1714083046121,-310.7209177,0.00011232,2]
[323550849,1714083046130,-500.0,0.00011232,2]
[323550850,1714083046143,-500.0,0.00011232,2]
[323550851,1714083046153,-500.0,0.00011232,2]
[323550852,1714083046162,-500.0,0.00011232,2]
[323550853,1714083046172,-1091.08,0.00011232,2]
[323550854,1714083046182,-500.0,0.00011232,2]
[323550855,1714083046192,-500.0,0.00011232,2]
[323550856,1714083046202,-500.0,0.00011232,2]
[323550857,1714083046211,-687.22,0.00011232,2]
[323550858,1714083046220,-2114.85,0.00011232,2]
[323550859,1714083046231,-500.0,0.00011232,2]
[323550860,1714083046241,-500.0,0.00011232,2]
[323550861,1714083046253,-500.0,0.00011232,2]
[323550862,1714083046263,-641.45,0.00011232,2]
[323550863,1714083046272,-500.0,0.00011232,2]
[323550864,1714083046281,-500.0,0.00011232,2]
[323550865,1714083046291,-500.0,0.00011232,2]
[323550866,1714083046300,-500.0,0.00011232,2]
[323550867,1714083046309,-500.0,0.00011232,2]
[323550868,1714083046318,-500.0,0.00011232,2]
[323550869,1714083046329,-500.0,0.00011232,2]
[323550870,1714083046339,-500.0,0.00011232,2]
[323550871,1714083046349,-500.0,0.00011232,2]
[323550872,1714083046358,-500.0,0.00011232,2]
[323550873,1714083046367,-500.0,0.00011232,2]
[323550874,1714083046377,-1050.56,0.00011232,2]
[323550875,1714083046389,-500.0,0.00011232,2]
[323550876,1714083046398,-500.0,0.00011232,2]
[323550877,1714083046408,-500.0,0.00011232,2]
[323550878,1714083046416,-463.34077792,0.00011232,2]
[323550879,1714083046425,-500.0,0.00011232,2]
[323550880,1714083046435,-557.5,0.00011232,2]
[323550881,1714083046444,-500.0,0.00011232,2]
[323550882,1714083046453,-500.0,0.00011232,2]
[323550883,1714083046463,-500.0,0.00011232,2]
[323550884,1714083046472,-500.0,0.00011232,2]
[323550885,1714083046481,-500.0,0.00011232,2]
[323550886,1714083046490,-500.0,0.00011232,2]
[323550887,1714083046499,-500.0,0.00011232,2]
[323550888,1714083046508,-500.0,0.00011232,2]
[323550889,1714083046517,-500.0,0.00011232,2]
[323550890,1714083046526,-500.0,0.00011232,2]
[323550891,1714083046535,-500.0,0.00011232,2]
[323550892,1714083046543,-500.0,0.00011232,2]
[323550893,1714083046553,-500.0,0.00011232,2]
[323550894,1714083046562,-500.0,0.00011232,2]
[323550895,1714083046570,-500.0,0.00011232,2]
[323550896,1714083046579,-500.0,0.00011232,2]
[323550897,1714083046589,-500.0,0.00011232,2]
[323550898,1714083046598,-500.0,0.00011232,2]
[323550899,1714083046607,-500.0,0.00011232,2]
[323550900,1714083046616,-500.0,0.00011232,2]
[323550901,1714083046625,-500.0,0.00011232,2]
[323550902,1714083046636,-644.7637258,0.00011232,2]
[323550903,1714083046645,-302.45193994,0.00011232,2]
[323550904,1714083046663,-197.54806006,0.00011232,2]
[323550905,1714083046672,-500.0,0.00011232,2]
[323550906,1714083046682,-500.0,0.00011232,2]
[323550907,1714083046717,-365.37139277,0.00011232,2]
[323550908,1714083046730,-134.62860723,0.00011232,2]
[323550909,1714083046742,-3143.34,0.00011232,2]
[323550910,1714083046753,-209.94215462,0.00011232,2]
[323550911,1714083046766,-290.05784538,0.00011232,2]
[323550912,1714083046775,-500.0,0.00011232,2]
[323550913,1714083046787,-500.0,0.00011232,2]
[323550914,1714083046799,-500.0,0.00011232,2]
[323550915,1714083046809,-500.0,0.00011232,2]
[323550916,1714083046819,-500.0,0.00011232,2]
[323550917,1714083046829,-500.0,0.00011232,2]
[323550918,1714083046841,-500.0,0.00011232,2]
[323550919,1714083046851,-500.0,0.00011232,2]
[323550920,1714083046861,-94.81484581,0.00011232,2]
[323550921,1714083046873,-405.18515419,0.00011232,2]
[323550922,1714083046884,-500.0,0.00011232,2]
[323550923,1714083046895,-500.0,0.00011232,2]
[323550924,1714083046905,-500.0,0.00011232,2]
[323550925,1714083046915,-500.0,0.00011232,2]
[323550926,1714083046925,-500.0,0.00011232,2]
[323550927,1714083046936,-500.0,0.00011232,2]
[323550928,1714083046946,-468.29495565,0.00011232,2]
[323550929,1714083046956,-500.0,0.00011232,2]
[323550930,1714083046966,-500.0,0.00011232,2]
[323550931,1714083046976,-500.0,0.00011232,2]
[323550932,1714083046986,-803.74,0.00011232,2]
[323550933,1714083046995,-500.0,0.00011232,2]
[323550934,1714083047005,-1901.39,0.00011232,2]
[323550935,1714083047015,-500.0,0.00011232,2]
[323550936,1714083047026,-1005.32,0.00011232,2]
[323550937,1714083047037,-630.83,0.00011232,2]
[323550938,1714083047046,-500.0,0.00011232,2]
[323550939,1714083047055,-500.0,0.00011232,2]
[323550940,1714083047065,-1757.61,0.00011232,2]
[323550941,1714083047074,-240.97974286,0.00011232,2]
[323550942,1714083047087,-259.02025714,0.00011232,2]
[323550943,1714083047097,-54.16470718,0.00011232,2]
[323550944,1714083047110,-563.81529282,0.00011232,2]
[323550945,1714083047119,-500.0,0.00011232,2]
[323550946,1714083047129,-500.0,0.00011232,2]
[323550947,1714083047141,-237.18717355,0.00011232,2]
[323550948,1714083047155,-262.81282645,0.00011232,2]
[323550949,1714083047165,-1065.43,0.00011232,2]
[323550950,1714083047175,-1553.28997508,0.00011232,2]
[323550951,1714083047197,-5956.74002492,0.00011232,2]
[323550952,1714083047208,-382.55997508,0.00011232,2]
[323550953,1714083047220,-117.44002492,0.00011232,2]
[323550954,1714083047231,-500.0,0.00011232,2]
[323550955,1714083047242,-975.57,0.00011232,2]
[323550956,1714083047257,-500.0,0.00011232,2]
[323550957,1714083047267,-445.77597507,0.00011232,2]
[323550958,1714083047281,-54.22402493,0.00011232,2]
[323550959,1714083047291,-962.9,0.00011232,2]
[323550960,1714083047300,-500.0,0.00011232,2]
[323550961,1714083047310,-3902.28,0.00011232,2]
[323550962,1714083047321,-500.0,0.00011232,2]
[323550963,1714083047332,-500.0,0.00011232,2]
[323550964,1714083047343,-500.0,0.00011232,2]
[323550965,1714083047353,-500.0,0.00011232,2]
[323550966,1714083047365,-500.0,0.00011232,2]
[323550967,1714083047376,-500.0,0.00011232,2]
[323550968,1714083047387,-2094.55,0.00011232,2]
[323550969,1714083047396,-868.2,0.00011232,2]
[323550970,1714083047405,-500.0,0.00011232,2]
[323550971,1714083047416,-922.85,0.00011232,2]
[323550972,1714083047426,-945.2,0.00011232,2]
[323550973,1714083047436,-500.0,0.00011232,2]
[323550974,1714083047446,-500.0,0.00011232,2]
[323550975,1714083047456,-1012.87,0.00011232,2]
[323550976,1714083047466,-500.0,0.00011232,2]
[323550977,1714083047477,-500.0,0.00011232,2]
[323550978,1714083047488,-500.0,0.00011232,2]
[323550979,1714083047498,-500.0,0.00011232,2]
[323550980,1714083047508,-500.0,0.00011232,2]
[323550981,1714083047519,-500.0,0.00011232,2]
[323550982,1714083047529,-500.0,0.00011232,2]
[323550983,1714083047541,-508.62,0.00011232,2]
[323550984,1714083047551,-1331.43,0.00011232,2]
[323550985,1714083047560,-622.03,0.00011232,2]
[323550986,1714083047571,-500.0,0.00011232,2]
[323550987,1714083047581,-500.0,0.00011232,2]
[323550988,1714083047593,-500.0,0.00011232,2]
[323550989,1714083047604,-500.0,0.00011232,2]
[323550990,1714083047615,-500.0,0.00011232,2]
[323550991,1714083047624,-1209.68,0.00011232,2]
[323550992,1714083047634,-500.0,0.00011232,2]
[323550993,1714083047644,-500.0,0.00011232,2]
[323550994,1714083047653,-500.0,0.00011232,2]
[323550995,1714083047663,-1814.87,0.00011232,2]
[323550996,1714083047672,-500.0,0.00011232,2]
[323550997,1714083047682,-795.86,0.00011232,2]
[323550998,1714083047691,-500.0,0.00011232,2]
[323550999,1714083047700,-227.16589531,0.00011232,2]
[323551000,1714083047712,-435.42410469,0.00011232,2]
[323551001,1714083047722,-500.0,0.00011232,2]
[323551002,1714083047731,-1118.22,0.00011232,2]
[323551003,1714083047741,-500.0,0.00011232,2]
[323551004,1714083047750,-500.0,0.00011232,2]
[323551005,1714083047759,-910.33,0.00011232,2]
[323551006,1714083047768,-500.0,0.00011232,2]
[323551007,1714083047777,-1434.45,0.00011232,2]
[323551008,1714083047787,-500.0,0.00011232,2]
[323551009,1714083047796,-500.0,0.00011232,2]
[323551010,1714083047805,-500.0,0.00011232,2]
[323551011,1714083047815,-500.0,0.00011232,2]
[323551012,1714083047824,-500.0,0.00011232,2]
[323551013,1714083047833,-916.26,0.00011232,2]
[323551014,1714083047843,-500.0,0.00011232,2]
[323551015,1714083047852,-751.22,0.00011232,2]
[323551016,1714083047861,-500.0,0.00011232,2]
[323551017,1714083047870,-500.0,0.00011232,2]
[323551018,1714083047880,-500.0,0.00011232,2]
[323551019,1714083047890,-500.0,0.00011232,2]
[323551020,1714083047900,-500.0,0.00011232,2]
[323551021,1714083047909,-1425.63,0.00011232,2]
[323551022,1714083047918,-500.0,0.00011232,2]
[323551023,1714083047927,-500.0,0.00011232,2]
[323551024,1714083047936,-500.0,0.00011232,2]
[323551025,1714083047945,-500.0,0.00011232,2]
[323551026,1714083047954,-1903.64,0.00011232,2]
[323551027,1714083047964,-500.0,0.00011232,2]
[323551028,1714083047973,-500.0,0.00011232,2]
[323551029,1714083047983,-2167.88,0.00011232,2]
[323551030,1714083047992,-1112.29,0.00011232,2]
[323551031,1714083048002,-500.0,0.00011232,2]
[323551032,1714083048012,-500.0,0.00011232,2]
[323551033,1714083048022,-2109.73,0.00011232,2]
[323551034,1714083048031,-4065.64764249,0.00011232,2]
[323551035,1714083048043,-3430.54235751,0.00011232,2]
[323551036,1714083048052,-500.0,0.00011232,2]
[323551037,1714083048062,-637.43,0.00011232,2]
[323551038,1714083048071,-500.0,0.00011232,2]
[323551039,1714083048080,-2205.63,0.00011232,2]
[323551040,1714083048090,-500.0,0.00011232,2]
[323551041,1714083048099,-383.53160794,0.00011232,2]
[323551042,1714083048110,-699.88839206,0.00011232,2]
[323551043,1714083048120,-500.0,0.00011232,2]
[323551044,1714083048129,-914.909388,0.00011232,2]
[323551045,1714083048148,-93.740612,0.00011232,2]
[323551046,1714083048157,-582.99,0.00011232,2]
[323551047,1714083048168,-1875.35,0.00011232,2]
[323551048,1714083048176,-615.58,0.00011232,2]
[323551049,1714083048185,-562.29,0.00011232,2]
[323551050,1714083048195,-500.0,0.00011232,2]
[323551051,1714083048204,-511.43,0.00011232,2]
[323551052,1714083048213,-2210.58,0.00011232,2]
[323551053,1714083048222,-1339.95,0.00011232,2]
[323551054,1714083048231,-1145.16,0.00011232,2]
[323551055,1714083048241,-1548.68,0.00011232,2]
[323551056,1714083048252,-662.07,0.00011232,2]
[323551057,1714083048262,-500.0,0.00011232,2]
[323551058,1714083048271,-500.0,0.00011232,2]
[323551059,1714083048281,-1723.14,0.00011232,2]
[323551060,1714083048291,-7358.84,0.00011232,2]
[323551061,1714083048300,-500.0,0.00011232,2]
[323551062,1714083048309,-9432.85,0.00011232,2]
[323551063,1714083048318,-537.77753374,0.00011232,2]
[323551064,1714083048328,-1127.16,0.00011232,2]
[323551065,1714083048338,-500.0,0.00011232,2]
[323551066,1714083048509,-500.0,0.00011232,2]
[323551067,1714083048519,-500.0,0.00011232,2]
[323551068,1714083048528,-500.0,0.00011232,2]
[323551069,1714083048537,-500.0,0.00011232,2]
[323551070,1714083048546,-1040.93,0.00011232,2]
[323551071,1714083048555,-700.73,0.00011232,2]
[323551072,1714083048564,-2743.66,0.00011232,2]
[323551073,1714083048574,-4515.82,0.00011232,2]
[323551074,1714083048583,-714.2,0.00011232,2]
[323551075,1714083048592,-790.76,0.00011232,2]
[323551076,1714083048601,-500.0,0.00011232,2]
[323551077,1714083048610,-658.21,0.00011232,2]
[323551078,1714083048619,-500.0,0.00011232,2]
[323551079,1714083048628,-500.0,0.00011232,2]
[323551080,1714083048638,-500.0,0.00011232,2]
[323551081,1714083048647,-3104.49,0.00011232,2]
[323551082,1714083048656,-570.45,0.00011232,2]
[323551083,1714083048665,-500.0,0.00011232,2]
[323551084,1714083048674,-500.0,0.00011232,2]
[323551085,1714083048683,-500.0,0.00011232,2]
[323551086,1714083048692,-500.0,0.00011232,2]
[323551087,1714083048700,-500.0,0.00011232,2]
[323551088,1714083048709,-3680.57,0.00011232,2]
[323551089,1714083048718,-2686.93,0.00011232,2]
[323551090,1714083048727,-500.0,0.00011232,2]
[323551091,1714083048736,-1039.85,0.00011232,2]
[323551092,1714083048745,-500.0,0.00011232,2]
[323551093,1714083048754,-5186.5,0.00011232,2]
[323551094,1714083048762,-500.0,0.00011232,2]
[323551095,1714083048772,-500.0,0.00011232,2]
[323551096,1714083048781,-500.0,0.00011232,2]
[323551097,1714083048790,-500.0,0.00011232,2]
[323551098,1714083048799,-725.97,0.00011232,2]
[323551099,1714083048808,-917.57,0.00011232,2]
[323551100,1714083048818,-795.73,0.00011232,2]
[323551101,1714083048827,-1010.42,0.00011232,2]
[323551102,1714083048837,-500.0,0.00011232,2]
[323551103,1714083048846,-500.0,0.00011232,2]
[323551104,1714083048855,-500.0,0.00011232,2]
[323551105,1714083048865,-1037.26,0.00011232,2]
[323551106,1714083048874,-552.96,0.00011232,2]
[323551107,1714083048884,-778.46,0.00011232,2]
[323551108,1714083048894,-668.22,0.00011232,2]
[323551109,1714083048903,-898.24,0.00011232,2]
[323551110,1714083048912,-500.0,0.00011232,2]
[323551111,1714083048922,-500.0,0.00011232,2]
[323551112,1714083048931,-971.61,0.00011232,2]
[323551113,1714083048941,-1127.54,0.00011232,2]
[323551114,1714083048950,-581.59,0.00011232,2]
[323551115,1714083048959,-500.0,0.00011232,2]
[323551116,1714083048968,-3470.52,0.00011232,2]
[323551117,1714083048977,-500.0,0.00011232,2]
[323551118,1714083048986,-500.0,0.00011232,2]
[323551119,1714083048995,-674.08,0.00011232,2]
[323551120,1714083049005,-500.0,0.00011232,2]
[323551121,1714083049014,-500.0,0.00011232,2]
[323551122,1714083049023,-852.19,0.00011232,2]
[323551123,1714083049032,-500.0,0.00011232,2]
[323551124,1714083049042,-500.0,0.00011232,2]
[323551125,1714083049051,-2122.83,0.00011232,2]
[323551126,1714083049060,-500.0,0.00011232,2]
[323551127,1714083049070,-2163.26,0.00011232,2]
[323551128,1714083049079,-500.0,0.00011232,2]
[323551129,1714083049088,-640.52,0.00011232,2]
[323551130,1714083049097,-725.95,0.00011232,2]
[323551131,1714083049106,-500.0,0.00011232,2]
[323551132,1714083049115,-1620.34,0.00011232,2]
[323551133,1714083049124,-1852.2,0.00011232,2]
[323551134,1714083049133,-500.0,0.00011232,2]
[323551135,1714083049144,-1722.18,0.00011232,2]
[323551136,1714083049153,-856.9,0.00011232,2]
[323551137,1714083049163,-549.11,0.00011232,2]
[323551138,1714083049173,-2825.86,0.00011232,2]
[323551139,1714083049192,-500.0,0.00011232,2]
[323551140,1714083049201,-500.0,0.00011232,2]
[323551141,1714083049211,-500.0,0.00011232,2]
[323551142,1714083049220,-500.0,0.00011232,2]
[323551143,1714083049230,-500.0,0.00011232,2]
[323551144,1714083049242,-500.0,0.00011232,2]
[323551145,1714083049255,-500.0,0.00011232,2]
[323551146,1714083049266,-500.0,0.00011232,2]
[323551147,1714083049275,-500.0,0.00011232,2]